Workbook

Sheet Inch Drills, Taps, and Mills
A1: I | C1: ANSI Unified Screw Threads, Drills, and Mills | AP1: ANSI Unified Screw Threads
F2: Tap Drill | AP2: Inch
A3: Type | B3: Size | C3: Suffix | D3: Designation | E3: TPI | F3: Required size | G3: CCW | H3: Units | I3: Flute Length | J3: Length Increment
A4: D | B4: 0.0059 | C4: 97 | D4: Drill | H4: I | I4: =ROUNDUP((+B4*3),2) -> 0.02 | J4: =MROUND((+I4*0.25),0.0025) -> 0.005
A5: D | B5: 0.0063 | C5: 96 | D5: Drill | H5: I | I5: =ROUNDUP((+B5*3),2) -> 0.02 | J5: =MROUND((+I5*0.25),0.0025) -> 0.005
A6: D | B6: 0.0067 | C6: 95 | D6: Drill | H6: I | I6: 0.03 | J6: =MROUND((+I6*0.25),0.0025) -> 0.0075
A7: D | B7: 0.0071 | C7: 94 | D7: Drill | H7: I | I7: 0.03 | J7: =MROUND((+I7*0.25),0.0125) -> 0.0125
A8: D | B8: 0.0075 | C8: 93 | D8: Drill | H8: I | I8: 0.03 | J8: 0.0125
A9: D | B9: 0.0079 | C9: 92 | D9: Drill | H9: I | I9: 0.03 | J9: 0.0125
A10: D | B10: 0.0083 | C10: 91 | D10: Drill | H10: I | I10: 0.03 | J10: 0.0125
A11: D | B11: 0.0087 | C11: 90 | D11: Drill | H11: I | I11: 0.03 | J11: 0.0125
A12: D | B12: 0.0091 | C12: 89 | D12: Drill | H12: I | I12: 0.03 | J12: 0.0125
A13: D | B13: 0.0095 | C13: 88 | D13: Drill | H13: I | I13: 0.03 | J13: 0.0125
A14: D | B14: 0.01 | C14: 87 | D14: Drill | H14: I | I14: 0.03 | J14: 0.0125
A15: M | B15: 0.01 | D15: Mill | H15: I | I15: 0.03 | J15: =MROUND((+I15*0.25),0.0125) -> 0.0125
A16: D | B16: 0.0105 | C16: 86 | D16: Drill | H16: I | I16: 0.04 | J16: 0.0125
A17: D | B17: 0.0110 | C17: 85 | D17: Drill | H17: I | I17: 0.04 | J17: 0.0125
A18: D | B18: 0.0115 | C18: 84 | D18: Drill | H18: I | I18: 0.04 | J18: 0.0125
A19: T | B19: 0.0118 | D19: 30-318 UNM | E19: 318 | F19: 0.0083 | H19: I | I19: 0.04 | J19: 0.0125
A20: D | B20: 0.0120 | C20: 83 | D20: Drill | H20: I | I20: 0.04 | J20: 0.0125
A21: D | B21: 0.0125 | C21: 82 | D21: Drill | H21: I | I21: 0.04 | J21: 0.0125
A22: D | B22: 0.0130 | C22: 81 | D22: Drill | H22: I | I22: 0.04 | J22: 0.0125
A23: D | B23: 0.014 | C23: 80 | D23: Drill | H23: I | I23: 0.05 | J23: 0.0125
A24: T | B24: 0.0138 | D24: 35-282 UNM | E24: 282 | F24: 0.0096 | H24: I | I24: 0.05 | J24: 0.0125
A25: D | B25: 0.0145 | C25: 79 | D25: Drill | H25: I | I25: 0.05 | J25: 0.0125
A26: D | B26: 0.0156 | C26: 1/64 | D26: Drill | H26: I | I26: 0.05 | J26: =MROUND((+I26*0.25),0.0125) -> 0.0125
A27: M | B27: 0.0156 | C27: 1/64 | D27: Mill | H27: I | I27: 0.05 | J27: 0.0125
A28: T | B28: 0.0157 | D28: 40-254 UNM | E28: 254 | F28: 0.0110 | H28: I | I28: 0.05 | J28: 0.0125
A29: D | B29: 0.0160 | C29: 78 | D29: Drill | H29: I | I29: 0.05 | J29: 0.0125
A30: T | B30: 0.0177 | D30: 45-254 UNM | E30: 254 | F30: 0.0124 | H30: I | I30: 0.06 | J30: 0.0125
A31: D | B31: 0.0180 | C31: 77 | D31: Drill | H31: I | I31: 0.06 | J31: 0.0125
A32: T | B32: 0.0197 | D32: 50-203 UNM | E32: 203 | F32: 0.0138 | H32: I | I32: 0.06 | J32: 0.0125
A33: D | B33: 0.0200 | C33: 76 | D33: Drill | H33: I | I33: 0.06 | J33: 0.0125
A34: D | B34: 0.0210 | C34: 75 | D34: Drill | H34: I | I34: 0.07 | J34: 0.0125
A35: T | B35: 0.0217 | D35: 55-203 UNM | E35: 203 | F35: 0.0150 | H35: I | I35: 0.07 | J35: 0.0125
A36: D | B36: 0.0225 | C36: 74 | D36: Drill | H36: I | I36: 0.07 | J36: =MROUND((+I36*0.25),0.0125) -> 0.0125
A37: T | B37: 0.0236 | D37: 60-169 UNM | E37: 169 | F37: 0.0165 | H37: I | I37: 0.08 | J37: 0.025
A38: D | B38: 0.024 | C38: 73 | D38: Drill | H38: I | I38: 0.08 | J38: 0.025
A39: D | B39: 0.025 | C39: 72 | D39: Drill | H39: I | I39: 0.08 | J39: 0.025
A40: D | B40: 0.026 | C40: 71 | D40: Drill | H40: I | I40: 0.08 | J40: 0.025
A41: T | B41: 0.0276 | D41: 70-145 UNM | E41: 145 | F41: 0.0197 | H41: I | I41: 0.09 | J41: 0.025
A42: D | B42: 0.028 | C42: 70 | D42: Drill | H42: I | I42: 0.09 | J42: 0.025
A43: D | B43: 0.0292 | C43: 69 | D43: Drill | H43: I | I43: 0.09 | J43: =MROUND((+I43*0.25),0.0125) -> 0.025
A44: D | B44: 0.031 | C44: 68 | D44: Drill | H44: I | I44: =MROUND((+B44*3),0.125) -> 0.125 | J44: =MROUND((+I44*0.25),0.03125) -> 0.03125
A45: D | B45: 0.0312 | C45: 1/32 | D45: Drill | H45: I | I45: 0.125 | J45: 0.03125
A46: M | B46: 0.0312 | C46: 1/32 | D46: Mill | H46: I | I46: 0.125 | J46: 0.03125
A47: T | B47: 0.0315 | D47: 80-127 UNM | E47: 127 | F47: 0.0220 | H47: I | I47: 0.125 | J47: 0.03125
A48: D | B48: 0.032 | C48: 67 | D48: Drill | H48: I | I48: 0.125 | J48: 0.03125
A49: D | B49: 0.033 | C49: 66 | D49: Drill | H49: I | I49: 0.125 | J49: 0.03125
A50: D | B50: 0.035 | C50: 65 | D50: Drill | H50: I | I50: 0.125 | J50: 0.03125
A51: M | B51: 0.035 | D51: Mill | H51: I | I51: 0.125 | J51: 0.03125
A52: T | B52: 0.0354 | D52: 90-113 UNM | E52: 113 | F52: 0.0248 | H52: I | I52: 0.125 | J52: 0.03125
A53: D | B53: 0.036 | C53: 64 | D53: Drill | H53: I | I53: 0.125 | J53: 0.03125
A54: D | B54: 0.037 | C54: 63 | D54: Drill | H54: I | I54: 0.125 | J54: 0.03125
A55: D | B55: 0.038 | C55: 62 | D55: Drill | H55: I | I55: 0.125 | J55: 0.03125
A56: D | B56: 0.039 | C56: 61 | D56: Drill | H56: I | I56: 0.125 | J56: 0.03125
A57: T | B57: 0.0394 | D57: 100-102 UNM | E57: 102 | F57: 0.0276 | H57: I | I57: 0.125 | J57: 0.03125
A58: D | B58: 0.04 | C58: 60 | D58: Drill | H58: I | I58: 0.125 | J58: 0.03125
A59: D | B59: 0.041 | C59: 59 | D59: Drill | H59: I | I59: 0.125 | J59: 0.03125
A60: D | B60: 0.042 | C60: 58 | D60: Drill | H60: I | I60: 0.125 | J60: 0.03125
A61: D | B61: 0.043 | C61: 57 | D61: Drill | H61: I | I61: 0.125 | J61: 0.03125
A62: T | B62: 0.0433 | D62: 110-102 UNM | E62: 102 | F62: 0.0315 | H62: I | I62: 0.125 | J62: 0.03125
A63: D | B63: 0.0456 | C63: 56 | D63: Drill | H63: I | I63: 0.125 | J63: 0.03125
A64: D | B64: 0.0469 | C64: 3/64 | D64: Drill | H64: I | I64: 0.125 | J64: 0.03125
A65: M | B65: 0.0469 | C65: 3/64 | D65: Mill | H65: I | I65: 0.125 | J65: 0.03125
A66: T | B66: 0.0472 | D66: 120-102 UNM | E66: 102 | F66: 0.0354 | H66: I | I66: 0.125 | J66: 0.03125
A67: D | B67: 0.052 | C67: 55 | D67: Drill | H67: I | I67: 0.125 | J67: 0.03125
A68: D | B68: 0.055 | C68: 54 | D68: Drill | H68: I | I68: 0.125 | J68: 0.03125
A69: T | B69: 0.0551 | D69: 140-85 UNM | E69: 85 | F69: 0.0386 | H69: I | I69: 0.125 | J69: 0.03125
A70: D | B70: 0.0595 | C70: 53 | D70: Drill | H70: I | I70: 0.125 | J70: 0.03125
A71: T | B71: 0.06 | C71: (#0) | D71: 0-80 UNF | E71: 80 | F71: 0.0469 | H71: I | I71: 0.125 | J71: 0.03125
A72: T | B72: 0.06 | C72: (#0) | D72: 0-72 UNF | E72: 72 | F72: 0.0465 | H72: I | I72: 0.125 | J72: =MROUND((+I72*0.25),0.03125) -> 0.03125
A73: D | B73: 0.0625 | C73: 1/16 | D73: Drill | H73: I | I73: 0.25 | J73: =MROUND((+I73*0.25),0.0625) -> 0.0625
A74: M | B74: 0.0625 | C74: 1/16 | D74: Mill | H74: I | I74: 0.25 | J74: =MROUND((+I74*0.25),0.0625) -> 0.0625
A75: D | B75: 0.0635 | C75: 52 | D75: Drill | H75: I | I75: 0.25 | J75: 0.0625
A76: D | B76: 0.067 | C76: 51 | D76: Drill | H76: I | I76: 0.25 | J76: 0.0625
A77: D | B77: 0.07 | C77: 50 | D77: Drill | H77: I | I77: 0.25 | J77: 0.0625
A78: D | B78: 0.073 | C78: 49 | D78: Drill | H78: I | I78: 0.25 | J78: 0.0625
A79: T | B79: 0.073 | C79: (#1) | D79: 1-64 UNC | E79: 64 | F79: 0.0595 | H79: I | I79: 0.25 | J79: 0.0625
A80: T | B80: 0.073 | C80: (#1) | D80: 1-72 UNF | E80: 72 | F80: 0.0595 | H80: I | I80: 0.25 | J80: 0.0625
A81: D | B81: 0.076 | C81: 48 | D81: Drill | H81: I | I81: 0.25 | J81: 0.0625
A82: D | B82: 0.0781 | C82: 5/64 | D82: Drill | H82: I | I82: 0.25 | J82: 0.0625
A83: M | B83: 0.0781 | C83: 5/64 | D83: Mill | H83: I | I83: 0.25 | J83: 0.0625
A84: D | B84: 0.0785 | C84: 47 | D84: Drill | H84: I | I84: 0.25 | J84: 0.0625
A85: D | B85: 0.081 | C85: 46 | D85: Drill | H85: I | I85: 0.25 | J85: 0.0625
A86: D | B86: 0.082 | C86: 45 | D86: Drill | H86: I | I86: 0.25 | J86: 0.0625
A87: D | B87: 0.086 | C87: 44 | D87: Drill | H87: I | I87: 0.25 | J87: 0.0625
A88: T | B88: 0.086 | C88: (#2) | D88: 2-56 UNC | E88: 56 | F88: 0.07 | H88: I | I88: 0.25 | J88: 0.0625
A89: T | B89: 0.086 | C89: (#2) | D89: 2-64 UNF | E89: 64 | F89: 0.07 | H89: I | I89: 0.25 | J89: 0.0625
A90: D | B90: 0.089 | C90: 43 | D90: Drill | H90: I | I90: 0.25 | J90: 0.0625
A91: D | B91: 0.0935 | C91: 42 | D91: Drill | H91: I | I91: 0.25 | J91: 0.0625
A92: D | B92: 0.0938 | C92: 3/32 | D92: Drill | H92: I | I92: 0.25 | J92: 0.0625
A93: D | B93: 0.096 | C93: 41 | D93: Drill | H93: I | I93: 0.25 | J93: 0.0625
A94: D | B94: 0.098 | C94: 40 | D94: Drill | H94: I | I94: 0.25 | J94: 0.0625
A95: T | B95: 0.099 | C95: (#3) | D95: 3-48 UNC | E95: 48 | F95: 0.0785 | H95: I | I95: 0.25 | J95: 0.0625
A96: T | B96: 0.099 | C96: (#3) | D96: 3-56 UNF | E96: 56 | F96: 0.082 | H96: I | I96: 0.25 | J96: 0.0625
A97: D | B97: 0.0995 | C97: 39 | D97: Drill | H97: I | I97: 0.25 | J97: 0.0625
A98: D | B98: 0.1015 | C98: 38 | D98: Drill | H98: I | I98: 0.25 | J98: 0.0625
A99: D | B99: 0.104 | C99: 37 | D99: Drill | H99: I | I99: 0.25 | J99: =MROUND((+I99*0.25),0.0625) -> 0.0625
A100: D | B100: 0.1065 | C100: 36 | D100: Drill | H100: I | I100: 0.375 | J100: =MROUND((+I100*0.2),0.125) -> 0.125
A101: D | B101: 0.1094 | C101: 7/64 | D101: Drill | H101: I | I101: 0.375 | J101: 0.125
A102: M | B102: 0.1094 | C102: 7/64 | D102: Mill | H102: I | I102: 0.375 | J102: 0.125
A103: D | B103: 0.11 | C103: 35 | D103: Drill | H103: I | I103: 0.375 | J103: 0.125
A104: D | B104: 0.111 | C104: 34 | D104: Drill | H104: I | I104: 0.375 | J104: 0.125
A105: T | B105: 0.112 | C105: (#4) | D105: 4-40 UNC | E105: 40 | F105: 0.089 | H105: I | I105: 0.375 | J105: 0.125
A106: T | B106: 0.112 | C106: (#4) | D106: 4-48 UNF | E106: 48 | F106: 0.0935 | H106: I | I106: 0.375 | J106: 0.125
A107: T | B107: 0.125 | C107: (#5) | D107: 5-40 UNC | E107: 40 | F107: 0.1015 | H107: I | I107: 0.375 | J107: 0.125
A108: T | B108: 0.125 | C108: (#5) | D108: 5-44 UNF | E108: 44 | F108: 0.104 | H108: I | I108: =MROUND((+B108*3),0.125) -> 0.375 | J108: 0.125
A109: D | B109: 0.113 | C109: 33 | D109: Drill | H109: I | I109: 0.375 | J109: 0.125
A110: T | B110: 0.138 | C110: (#6) | D110: 6-32 UNC | E110: 32 | F110: 0.1065 | H110: I | I110: 0.375 | J110: 0.125
A111: T | B111: 0.138 | C111: (#6) | D111: 6-40 UNF | E111: 40 | F111: 0.113 | H111: I | I111: 0.375 | J111: 0.125
A112: D | B112: 0.116 | C112: 32 | D112: Drill | H112: I | I112: 0.375 | J112: 0.125
A113: D | B113: 0.12 | C113: 31 | D113: Drill | H113: I | I113: 0.375 | J113: 0.125
A114: D | B114: 0.125 | C114: 1/8 | D114: Drill | H114: I | I114: 0.375 | J114: 0.125
A115: M | B115: 0.125 | C115: 1/8 | D115: Mill | H115: I | I115: 0.375 | J115: 0.125
A116: R | B116: 0.125 | C116: 1/8 | D116: Reamer | F116: 0.11 | H116: I | I116: 0.375 | J116: 0.125
A117: CS | B117: 0.125 | C117: 1/8 | D117: Countersink | H117: I | I117: 0.375 | J117: 0.125
A118: D | B118: 0.1285 | C118: 30 | D118: Drill | H118: I | I118: 0.375 | J118: 0.125
A119: D | B119: 0.136 | C119: 29 | D119: Drill | H119: I | I119: 0.375 | J119: 0.125
A120: D | B120: 0.1405 | C120: 28 | D120: Drill | H120: I | I120: 0.375 | J120: 0.125
A121: D | B121: 0.144 | C121: 27 | D121: Drill | H121: I | I121: 0.375 | J121: 0.125
A122: D | B122: 0.147 | C122: 26 | D122: Drill | H122: I | I122: 0.5 | J122: 0.125
A123: D | B123: 0.1495 | C123: 25 | D123: Drill | H123: I | I123: 0.5 | J123: 0.125
A124: D | B124: 0.152 | C124: 24 | D124: Drill | H124: I | I124: 0.5 | J124: 0.125
A125: D | B125: 0.154 | C125: 23 | D125: Drill | H125: I | I125: 0.5 | J125: 0.125
A126: D | B126: 0.1562 | C126: 5/32 | D126: Drill | H126: I | I126: 0.5 | J126: 0.125
A127: M | B127: 0.1562 | C127: 5/32 | D127: Mill | H127: I | I127: 0.5 | J127: 0.125
A128: T | B128: 0.164 | C128: (#8) | D128: 8-32 UNC | E128: 32 | F128: 0.136 | H128: I | I128: 0.5 | J128: 0.125
A129: T | B129: 0.164 | C129: (#8) | D129: 8-36 UNF | E129: 36 | F129: 0.136 | H129: I | I129: 0.5 | J129: 0.125
A130: D | B130: 0.157 | C130: 22 | D130: Drill | H130: I | I130: 0.5 | J130: 0.125
A131: D | B131: 0.159 | C131: 21 | D131: Drill | H131: I | I131: 0.5 | J131: 0.125
A132: D | B132: 0.161 | C132: 20 | D132: Drill | H132: I | I132: 0.5 | J132: 0.125
A133: D | B133: 0.166 | C133: 19 | D133: Drill | H133: I | I133: 0.5 | J133: 0.125
A134: D | B134: 0.1695 | C134: 18 | D134: Drill | H134: I | I134: 0.5 | J134: 0.125
A135: D | B135: 0.1719 | C135: 11/64 | D135: Drill | H135: I | I135: 0.5 | J135: 0.125
A136: M | B136: 0.1719 | C136: 11/64 | D136: Mill | H136: I | I136: 0.5 | J136: 0.125
A137: D | B137: 0.173 | C137: 17 | D137: Drill | H137: I | I137: 0.5 | J137: 0.125
A138: D | B138: 0.177 | C138: 16 | D138: Drill | H138: I | I138: 0.5 | J138: 0.125
A139: D | B139: 0.18 | C139: 15 | D139: Drill | H139: I | I139: 0.5 | J139: 0.125
A140: D | B140: 0.182 | C140: 14 | D140: Drill | H140: I | I140: 0.5 | J140: 0.125
A141: D | B141: 0.185 | C141: 13 | D141: Drill | H141: I | I141: 0.5 | J141: =MROUND((+I141*0.2),0.125) -> 0.125
A142: D | B142: 0.1875 | C142: 3/16 | D142: Drill | H142: I | I142: 0.625 | J142: 0.125
A143: M | B143: 0.1875 | C143: 3/16 | D143: Mill | H143: I | I143: 0.625 | J143: 0.125
A144: R | B144: 0.1875 | C144: 3/16 | D144: Reamer | F144: 0.173 | H144: I | I144: 0.625 | J144: 0.125
A145: D | B145: 0.189 | C145: 12 | D145: Drill | H145: I | I145: 0.625 | J145: 0.125
A146: T | B146: 0.19 | C146: (#10) | D146: 10-24 UNC | E146: 24 | F146: 0.1495 | H146: I | I146: 0.625 | J146: 0.125
A147: T | B147: 0.19 | C147: (#10) | D147: 10-28 UNS | E147: 28 | F147: 0.152 | H147: I | I147: 0.625 | J147: 0.125
A148: T | B148: 0.19 | C148: (#10) | D148: 10-32 UNF | E148: 32 | F148: 0.159 | H148: I | I148: 0.625 | J148: 0.125
A149: T | B149: 0.19 | C149: (#10) | D149: 10-36 UNS | E149: 36 | F149: 0.159 | H149: I | I149: 0.625 | J149: 0.125
A150: T | B150: 0.19 | C150: (#10) | D150: 10-40 UNS | E150: 40 | F150: 0.161 | H150: I | I150: 0.625 | J150: 0.125
A151: T | B151: 0.19 | C151: (#10) | D151: 10-48 UNS | E151: 48 | F151: 0.166 | H151: I | I151: 0.625 | J151: 0.125
A152: T | B152: 0.19 | C152: (#10) | D152: 10-56 UNS | E152: 56 | F152: 0.1695 | H152: I | I152: 0.625 | J152: 0.125
A153: D | B153: 0.191 | C153: 11 | D153: Drill | H153: I | I153: 0.625 | J153: 0.125
A154: D | B154: 0.1935 | C154: 10 | D154: Drill | H154: I | I154: 0.625 | J154: 0.125
A155: D | B155: 0.196 | C155: 9 | D155: Drill | H155: I | I155: 0.625 | J155: 0.125
A156: D | B156: 0.199 | C156: 8 | D156: Drill | H156: I | I156: 0.625 | J156: 0.125
A157: D | B157: 0.201 | C157: 7 | D157: Drill | H157: I | I157: 0.625 | J157: 0.125
A158: D | B158: 0.2031 | C158: 13/64 | D158: Drill | H158: I | I158: 0.625 | J158: 0.125
A159: M | B159: 0.2031 | C159: 13/64 | D159: Mill | H159: I | I159: 0.625 | J159: 0.125
A160: D | B160: 0.204 | C160: 6 | D160: Drill | H160: I | I160: 0.625 | J160: 0.125
A161: D | B161: 0.2055 | C161: 5 | D161: Drill | H161: I | I161: 0.625 | J161: 0.125
A162: D | B162: 0.209 | C162: 4 | D162: Drill | H162: I | I162: 0.625 | J162: 0.125
A163: D | B163: 0.213 | C163: 3 | D163: Drill | H163: I | I163: 0.625 | J163: 0.125
A164: T | B164: 0.216 | C164: (#12) | D164: 12-24 UNC | E164: 24 | F164: 0.177 | H164: I | I164: 0.625 | J164: 0.125
A165: T | B165: 0.216 | C165: (#12) | D165: 12-28 UNF | E165: 28 | F165: 0.182 | H165: I | I165: 0.625 | J165: 0.125
A166: T | B166: 0.216 | C166: (#12) | D166: 12-32 UNEF | E166: 32 | F166: 0.18 | H166: I | I166: 0.625 | J166: 0.125
A167: T | B167: 0.216 | C167: (#12) | D167: 12-36 UNS | E167: 36 | F167: 0.189 | H167: I | I167: 0.625 | J167: 0.125
A168: T | B168: 0.216 | C168: (#12) | D168: 12-40 UNS | E168: 40 | F168: 0.191 | H168: I | I168: 0.625 | J168: 0.125
A169: T | B169: 0.216 | C169: (#12) | D169: 12-48 UNS | E169: 48 | F169: 0.196 | H169: I | I169: 0.625 | J169: 0.125
A170: T | B170: 0.216 | C170: (#12) | D170: 12-56 UNS | E170: 56 | F170: 0.196 | H170: I | I170: 0.625 | J170: 0.125
A171: D | B171: 0.2188 | C171: 7/32 | D171: Drill | H171: I | I171: 0.625 | J171: 0.125
A172: M | B172: 0.2188 | C172: 7/32 | D172: Mill | H172: I | I172: =MROUND((+B172*3),0.125) -> 0.625 | J172: 0.125
A173: D | B173: 0.221 | C173: 2 | D173: Drill | H173: I | I173: 0.625 | J173: 0.125
A174: D | B174: 0.228 | C174: 1 | D174: Drill | H174: I | I174: 0.625 | J174: 0.125
A175: D | B175: 0.234 | C175: A | D175: Drill | H175: I | I175: 0.75 | J175: =MROUND((+I175*0.2),0.125) -> 0.125
A176: D | B176: 0.2344 | C176: 15/64 | D176: Drill | H176: I | I176: 0.75 | J176: 0.125
A177: M | B177: 0.2344 | C177: 15/64 | D177: Mill | H177: I | I177: 0.75 | J177: 0.125
A178: D | B178: 0.238 | C178: B | D178: Drill | H178: I | I178: 0.75 | J178: 0.125
A179: D | B179: 0.242 | C179: C | D179: Drill | H179: I | I179: 0.75 | J179: 0.125
A180: D | B180: 0.246 | C180: D | D180: Drill | H180: I | I180: 0.75 | J180: 0.125
A181: D | B181: 0.25 | C181: E | D181: Drill | H181: I | I181: 0.75 | J181: 0.125
A182: D | B182: 0.25 | C182: 1/4 | D182: Drill | H182: I | I182: 0.75 | J182: 0.125
A183: M | B183: 0.25 | C183: 1/4 | D183: Mill | F183: 0.3125 | H183: I | I183: 0.75 | J183: 0.125
A184: R | B184: 0.25 | C184: 1/4 | D184: Reamer | F184: 0.2344 | H184: I | I184: 0.75 | J184: 0.125
A185: CS | B185: 0.25 | C185: 1/4 | D185: Countersink | H185: I | I185: 0.75 | J185: 0.125
A186: T | B186: 0.25 | D186: 1/4-20 UNC | E186: 20 | F186: 0.201 | H186: I | I186: 0.75 | J186: =MROUND((+I186*0.2),0.125) -> 0.125
A187: T | B187: 0.25 | D187: 1/4-24 UNS | E187: 24 | F187: 0.209 | H187: I | I187: 0.75 | J187: 0.125
A188: T | B188: 0.25 | D188: 1/4-27 UNS | E188: 27 | F188: 0.213 | H188: I | I188: 0.75 | J188: 0.125
A189: T | B189: 0.25 | D189: 1/4-28 UNF | E189: 28 | F189: 0.213 | H189: I | I189: 0.75 | J189: 0.125
A190: T | B190: 0.25 | D190: 1/4-32 UNEF | E190: 32 | F190: 0.2187 | H190: I | I190: 0.75 | J190: 0.125
A191: T | B191: 0.25 | D191: 1/4-36 UNS | E191: 36 | F191: 0.221 | H191: I | I191: 0.75 | J191: 0.125
A192: T | B192: 0.25 | D192: 1/4-40 UNS | E192: 40 | F192: 0.228 | H192: I | I192: 0.75 | J192: 0.125
A193: T | B193: 0.25 | D193: 1/4-48 UNS | E193: 48 | F193: 0.228 | H193: I | I193: 0.75 | J193: 0.125
A194: T | B194: 0.25 | D194: 1/4-56 UNS | E194: 56 | F194: 0.234 | H194: I | I194: 0.75 | J194: 0.125
A195: D | B195: 0.257 | C195: F | D195: Drill | H195: I | I195: 0.75 | J195: 0.125
A196: D | B196: 0.261 | C196: G | D196: Drill | H196: I | I196: 0.75 | J196: 0.125
A197: D | B197: 0.2656 | C197: 17/64 | D197: Drill | H197: I | I197: 0.75 | J197: 0.125
A198: M | B198: 0.2656 | C198: 17/64 | D198: Mill | F198: 0.3125 | H198: I | I198: 0.75 | J198: 0.125
A199: D | B199: 0.266 | C199: H | D199: Drill | H199: I | I199: 0.75 | J199: =MROUND((+I199*0.2),0.125) -> 0.125
A200: D | B200: 0.272 | C200: I | D200: Drill | H200: I | I200: 0.875 | J200: 0.125
... 415 more rows

Sheet Metric Drills, Taps, and Mills
A1: M | C1: Metric Drills, Taps, and Mills | AP1: ANSI Metric M Profile
AP2: mm
A3: Type | B3: Size | C3: Suffix | D3: Designation | E3: Pitch | F3: Tap Drill | G3: CCW | H3: Units | I3: Flute Length | J3: Length increment
A4: D | B4: 0.1 | D4: Drill | H4: M | I4: =ROUNDUP((+B4*3),0) -> 1 | J4: =I4*0.25 -> 0.25
A5: D | B5: 0.175 | D5: Drill | H5: M | I5: =ROUNDUP((+B5*3),0) -> 1 | J5: =I5*0.25 -> 0.25
A6: D | B6: 0.2 | D6: Drill | H6: M | I6: 1 | J6: 0.25
A7: D | B7: 0.21 | D7: Drill | H7: M | I7: 1 | J7: 0.25
A8: D | B8: 0.245 | D8: Drill | H8: M | I8: 1 | J8: 0.25
A9: T | B9: 0.25 | D9: M0.25x0.075 | E9: 0.075 | F9: 0.175 | H9: M | I9: 1 | J9: 0.25
A10: D | B10: 0.28 | D10: Drill | H10: M | I10: 1 | J10: 0.25
A11: D | B11: 0.3 | D11: Drill | H11: M | I11: 1 | J11: 0.25
A12: T | B12: 0.3 | D12: M0.3x0.08 | E12: 0.08 | F12: 0.210 | H12: M | I12: 1 | J12: 0.25
A13: D | B13: 0.315 | D13: Drill | H13: M | I13: 1 | J13: 0.25
A14: D | B14: 0.35 | D14: Drill | H14: M | I14: 2 | J14: =I14*0.25 -> 0.5
A15: T | B15: 0.35 | D15: M0.35x0.09 | E15: 0.09 | F15: 0.245 | H15: M | I15: 2 | J15: 0.5
A16: D | B16: 0.38 | D16: Drill | H16: M | I16: 2 | J16: 0.5
A17: D | B17: 0.4 | D17: Drill | H17: M | I17: 2 | J17: 0.5
A18: T | B18: 0.4 | D18: M0.4x0.1 | E18: 0.1 | F18: 0.280 | H18: M | I18: 2 | J18: 0.5
A19: D | B19: 0.42 | D19: Drill | H19: M | I19: 2 | J19: 0.5
A20: D | B20: 0.45 | D20: Drill | H20: M | I20: 2 | J20: 0.5
A21: T | B21: 0.45 | D21: M0.45x0.1 | E21: 0.1 | F21: 0.315 | H21: M | I21: =ROUNDUP((+B21*3),0) -> 2 | J21: 0.5
A22: T | B22: 0.5 | D22: M0.5x0.125 | E22: 0.125 | F22: 0.350 | H22: M | I22: =ROUNDUP((+B22*5),0) -> 3 | J22: =I22*0.25 -> 0.75
A23: D | B23: 0.5 | D23: Drill | H23: M | I23: =ROUNDUP((+B23*5),0) -> 3 | J23: 0.75
A24: M | B24: 0.5 | D24: Mill | H24: M | I24: 3 | J24: 0.75
A25: D | B25: 0.55 | D25: Drill | H25: M | I25: 3 | J25: 0.75
A26: T | B26: 0.55 | D26: M0.55x0.125 | E26: 0.125 | F26: 0.380 | H26: M | I26: 3 | J26: 0.75
A27: D | B27: 0.56 | D27: Drill | H27: M | I27: 3 | J27: 0.75
A28: T | B28: 0.6 | D28: M0.6x0.15 | E28: 0.15 | F28: 0.420 | H28: M | I28: 3 | J28: 0.75
A29: D | B29: 0.6 | D29: Drill | H29: M | I29: 3 | J29: 0.75
A30: D | B30: 0.63 | D30: Drill | H30: M | I30: 4 | J30: =I30*0.25 -> 1
A31: D | B31: 0.65 | D31: Drill | H31: M | I31: 4 | J31: 1
A32: D | B32: 0.7 | D32: Drill | H32: M | I32: 4 | J32: 1
A33: T | B33: 0.7 | D33: M0.7x0.175 | E33: 0.175 | F33: 0.500 | H33: M | I33: 4 | J33: 1
A34: D | B34: 0.75 | D34: Drill | H34: M | I34: 4 | J34: 1
A35: D | B35: 0.8 | D35: Drill | H35: M | I35: 4 | J35: 1
A36: T | B36: 0.8 | D36: M0.8x0.2 | E36: 0.2 | F36: 0.560 | H36: M | I36: 4 | J36: 1
A37: D | B37: 0.85 | D37: Drill | H37: M | I37: 5 | J37: =MROUND((+I37*0.25),1) -> 1
A38: D | B38: 0.9 | D38: Drill | H38: M | I38: 5 | J38: =MROUND((+I38*0.25),1) -> 1
A39: T | B39: 0.9 | D39: M0.9x0.225 | E39: 0.225 | F39: 0.630 | H39: M | I39: 5 | J39: 1
A40: D | B40: 0.95 | D40: Drill | H40: M | I40: 5 | J40: 1
A41: R | B41: 1 | D41: Reamer | F41: 0.600 | H41: M | I41: 5 | J41: 1
A42: D | B42: 1 | D42: Drill | H42: M | I42: 5 | J42: 1
A43: M | B43: 1 | D43: Mill | H43: M | I43: 5 | J43: 1
A44: CS | B44: 1 | D44: Countersink | H44: M | I44: 5 | J44: 1
A45: T | B45: 1 | D45: M1x0.25 | E45: 0.25 | F45: 0.750 | H45: M | I45: =ROUNDUP((+B45*5),0) -> 5 | J45: 1
A46: T | B46: 1 | D46: M1x0.2 | E46: 0.2 | F46: 0.800 | H46: M | I46: 5 | J46: 1
A47: D | B47: 1.1 | D47: Drill | H47: M | I47: =ROUNDUP((+B47*5),0) -> 6 | J47: 2
A48: T | B48: 1.1 | D48: M1.1x0.25 | E48: 0.25 | F48: 0.850 | H48: M | I48: 6 | J48: 2
A49: T | B49: 1.1 | D49: M1.1x0.2 | E49: 0.2 | F49: 0.900 | H49: M | I49: 6 | J49: 2
A50: D | B50: 1.15 | D50: Drill | H50: M | I50: 6 | J50: 2
A51: D | B51: 1.2 | D51: Drill | H51: M | I51: 6 | J51: 2
A52: T | B52: 1.2 | D52: M1.2x0.25 | E52: 0.25 | F52: 0.950 | H52: M | I52: 6 | J52: 2
A53: T | B53: 1.2 | D53: M1.2x0.2 | E53: 0.2 | F53: 1.000 | H53: M | I53: 6 | J53: 2
A54: D | B54: 1.25 | D54: Drill | H54: M | I54: 7 | J54: 2
A55: M | B55: 1.25 | D55: Mill | H55: M | I55: 7 | J55: 2
A56: D | B56: 1.3 | D56: Drill | H56: M | I56: 7 | J56: 2
A57: D | B57: 1.35 | D57: Drill | H57: M | I57: 7 | J57: 2
A58: D | B58: 1.4 | D58: Drill | H58: M | I58: 7 | J58: 2
A59: T | B59: 1.4 | D59: M1.4x0.3 | E59: 0.3 | F59: 1.100 | H59: M | I59: 7 | J59: 2
A60: T | B60: 1.4 | D60: M1.4x0.2 | E60: 0.2 | F60: 1.200 | H60: M | I60: 7 | J60: 2
A61: D | B61: 1.45 | D61: Drill | H61: M | I61: 8 | J61: 2
A62: D | B62: 1.5 | D62: Drill | H62: M | I62: 8 | J62: 2
A63: M | B63: 1.5 | D63: Mill | H63: M | I63: 8 | J63: 2
A64: D | B64: 1.55 | D64: Drill | H64: M | I64: 8 | J64: 2
A65: D | B65: 1.6 | D65: Drill | H65: M | I65: =ROUNDUP((+B65*5),0) -> 8 | J65: 2
A66: M | B66: 1.6 | D66: Mill | H66: M | I66: 8 | J66: 2
A67: T | B67: 1.6 | D67: M1.6x0.35 | E67: 0.35 | F67: 1.250 | H67: M | I67: 8 | J67: 2
A68: T | B68: 1.6 | D68: M1.6x0.2 | E68: 0.2 | F68: 1.4 | H68: M | I68: 8 | J68: 2
A69: D | B69: 1.65 | D69: Drill | H69: M | I69: 9 | J69: 2
A70: M | B70: 1.65 | D70: Mill | H70: M | I70: 9 | J70: 2
A71: D | B71: 1.7 | D71: Drill | H71: M | I71: 9 | J71: 2
A72: T | B72: 1.7 | D72: M1.7x0.35 | E72: 0.35 | F72: 1.350 | H72: M | I72: 9 | J72: 2
A73: D | B73: 1.75 | D73: Drill | H73: M | I73: 9 | J73: 2
A74: D | B74: 1.8 | D74: Drill | H74: M | I74: 9 | J74: 2
A75: M | B75: 1.8 | D75: Mill | H75: M | I75: 9 | J75: 2
A76: T | B76: 1.8 | D76: M1.8x0.35 | E76: 0.35 | F76: 1.450 | H76: M | I76: 9 | J76: 2
A77: T | B77: 1.8 | D77: M1.8x0.2 | E77: 0.2 | F77: 1.600 | H77: M | I77: 9 | J77: 2
A78: D | B78: 1.85 | D78: Drill | H78: M | I78: 10 | J78: 3
A79: D | B79: 1.9 | D79: Drill | H79: M | I79: 10 | J79: 3
A80: D | B80: 1.95 | D80: Drill | H80: M | I80: 10 | J80: 3
A81: D | B81: 2 | D81: Drill | H81: M | I81: 10 | J81: 3
A82: M | B82: 2 | D82: Mill | H82: M | I82: 10 | J82: 3
A83: R | B83: 2 | D83: Reamer | F83: 1.600 | H83: M | I83: 10 | J83: 3
A84: CS | B84: 2 | D84: Countersink | H84: M | I84: 10 | J84: 3
A85: T | B85: 2 | D85: M2x0.4 | E85: 0.4 | F85: 1.600 | H85: M | I85: 10 | J85: 3
A86: T | B86: 2 | D86: M2x0.25 | E86: 0.25 | F86: 1.750 | H86: M | I86: 10 | J86: 3
A87: D | B87: 2.05 | D87: Drill | H87: M | I87: =ROUNDUP((+B87*5),0) -> 11 | J87: 3
A88: D | B88: 2.1 | D88: Drill | H88: M | I88: 11 | J88: 3
A89: D | B89: 2.15 | D89: Drill | H89: M | I89: =ROUNDUP((+B89*5),0) -> 11 | J89: 3
A90: D | B90: 2.2 | D90: Drill | H90: M | I90: 11 | J90: 3
A91: M | B91: 2.2 | D91: Mill | H91: M | I91: 11 | J91: 3
A92: T | B92: 2.2 | D92: M2.2x0.45 | E92: 0.45 | F92: 1.750 | H92: M | I92: 11 | J92: 3
A93: T | B93: 2.2 | D93: M2.2x0.25 | E93: 0.25 | F93: 1.950 | H93: M | I93: 11 | J93: 3
A94: D | B94: 2.25 | D94: Drill | H94: M | I94: 12 | J94: 3
A95: D | B95: 2.3 | D95: Drill | H95: M | I95: 12 | J95: 3
A96: T | B96: 2.3 | D96: M2.3x0.45 | E96: 0.45 | F96: 1.850 | H96: M | I96: 12 | J96: 3
A97: T | B97: 2.3 | D97: M2.3x0.4 | E97: 0.4 | F97: 1.900 | H97: M | I97: 12 | J97: 3
A98: D | B98: 2.35 | D98: Drill | H98: M | I98: 12 | J98: 3
A99: D | B99: 2.4 | D99: Drill | H99: M | I99: 12 | J99: 3
A100: D | B100: 2.45 | D100: Drill | H100: M | I100: 13 | J100: 3
A101: D | B101: 2.5 | D101: Drill | H101: M | I101: 13 | J101: 3
A102: M | B102: 2.5 | D102: Mill | H102: M | I102: 13 | J102: =MROUND((+I102*0.25),1) -> 3
A103: T | B103: 2.5 | D103: M2.5x0.45 | E103: 0.45 | F103: 2.050 | H103: M | I103: 13 | J103: 3
A104: T | B104: 2.5 | D104: M2.5x0.35 | E104: 0.35 | F104: 2.150 | H104: M | I104: 13 | J104: 3
A105: D | B105: 2.6 | D105: Drill | H105: M | I105: 13 | J105: 3
A106: T | B106: 2.6 | D106: M2.6x0.45 | E106: 0.45 | F106: 2.150 | H106: M | I106: 13 | J106: 3
A107: D | B107: 2.65 | D107: Drill | H107: M | I107: 14 | J107: 4
A108: D | B108: 2.7 | D108: Drill | H108: M | I108: 14 | J108: 4
A109: D | B109: 2.8 | D109: Drill | H109: M | I109: 14 | J109: 4
A110: D | B110: 2.9 | D110: Drill | H110: M | I110: 15 | J110: 4
A111: D | B111: 3 | D111: Drill | H111: M | I111: 15 | J111: 4
A112: M | B112: 3 | D112: Mill | H112: M | I112: 15 | J112: 4
A113: R | B113: 3 | D113: Reamer | F113: 2.600 | H113: M | I113: 15 | J113: 4
A114: CS | B114: 3 | D114: Countersink | H114: M | I114: 15 | J114: 4
A115: T | B115: 3 | D115: M3x0.5 | E115: 0.5 | F115: 2.500 | H115: M | I115: 15 | J115: 4
A116: T | B116: 3 | D116: M3x0.35 | E116: 0.35 | F116: 2.650 | H116: M | I116: 15 | J116: 4
A117: D | B117: 3.1 | D117: Drill | H117: M | I117: 16 | J117: 4
A118: D | B118: 3.15 | D118: Drill | H118: M | I118: 16 | J118: 4
A119: D | B119: 3.3 | D119: Drill | H119: M | I119: 17 | J119: 4
A120: D | B120: 3.5 | D120: Drill | H120: M | I120: 18 | J120: 5
A121: M | B121: 3.5 | D121: Mill | H121: M | I121: 18 | J121: 5
A122: T | B122: 3.5 | D122: M3.5x0.6 | E122: 0.6 | F122: 2.900 | H122: M | I122: 18 | J122: 5
A123: T | B123: 3.5 | D123: M3.5x0.35 | E123: 0.35 | F123: 3.150 | H123: M | I123: 18 | J123: 5
A124: D | B124: 3.6 | D124: Drill | H124: M | I124: 18 | J124: 5
A125: D | B125: 3.7 | D125: Drill | H125: M | I125: 19 | J125: 5
A126: D | B126: 3.75 | D126: Drill | H126: M | I126: 19 | J126: 5
A127: D | B127: 3.8 | D127: Drill | H127: M | I127: 19 | J127: 5
A128: D | B128: 3.9 | D128: Drill | H128: M | I128: 20 | J128: 5
A129: D | B129: 4 | D129: Drill | H129: M | I129: 20 | J129: 5
A130: M | B130: 4 | D130: Mill | H130: M | I130: 20 | J130: 5
A131: R | B131: 4 | D131: Reamer | F131: 3.600 | H131: M | I131: 20 | J131: 5
A132: CS | B132: 4 | D132: Countersink | H132: M | I132: 20 | J132: 5
A133: T | B133: 4 | D133: M4x0.7 | E133: 0.7 | F133: 3.300 | H133: M | I133: 20 | J133: 5
A134: T | B134: 4 | D134: M4x0.5 | E134: 0.5 | F134: 3.500 | H134: M | I134: 20 | J134: 5
A135: D | B135: 4.1 | D135: Drill | H135: M | I135: 21 | J135: 5
A136: D | B136: 4.2 | D136: Drill | H136: M | I136: 21 | J136: 5
A137: D | B137: 4.3 | D137: Drill | H137: M | I137: 22 | J137: 5
A138: D | B138: 4.4 | D138: Drill | H138: M | I138: 22 | J138: 5
A139: D | B139: 4.5 | D139: Drill | H139: M | I139: 23 | J139: 5
A140: M | B140: 4.5 | D140: Mill | H140: M | I140: 23 | J140: 5
A141: T | B141: 4.5 | D141: M4.5x0.75 | E141: 0.75 | F141: 3.750 | H141: M | I141: 23 | J141: 5
A142: T | B142: 4.5 | D142: M4.5x0.5 | E142: 0.5 | F142: 4.000 | H142: M | I142: 23 | J142: 5
A143: D | B143: 4.6 | D143: Drill | H143: M | I143: 23 | J143: 5
A144: D | B144: 4.7 | D144: Drill | H144: M | I144: 24 | J144: 5
A145: D | B145: 4.8 | D145: Drill | H145: M | I145: 24 | J145: 5
A146: D | B146: 4.9 | D146: Drill | H146: M | I146: 25 | J146: 5
A147: D | B147: 5 | D147: Drill | H147: M | I147: 25 | J147: 5
A148: M | B148: 5 | D148: Mill | F148: 6.000 | H148: M | I148: 25 | J148: 5
A149: R | B149: 5 | D149: Reamer | F149: 4.600 | H149: M | I149: 25 | J149: 5
A150: CS | B150: 5 | D150: Countersink | H150: M | I150: 25 | J150: 5
A151: T | B151: 5 | D151: M5x0.8 | E151: 0.8 | F151: 4.200 | H151: M | I151: 25 | J151: 5
A152: T | B152: 5 | D152: M5x0.5 | E152: 0.5 | F152: 4.500 | H152: M | I152: 25 | J152: 5
A153: D | B153: 5.1 | D153: Drill | H153: M | I153: =ROUNDUP((+B153*5),0) -> 26 | J153: 5
A154: D | B154: 5.2 | D154: Drill | H154: M | I154: 26 | J154: 5
A155: D | B155: 5.25 | D155: Drill | H155: M | I155: 27 | J155: 5
A156: D | B156: 5.3 | D156: Drill | H156: M | I156: 27 | J156: 5
A157: D | B157: 5.4 | D157: Drill | H157: M | I157: 27 | J157: 5
A158: D | B158: 5.5 | D158: Drill | H158: M | I158: 28 | J158: 5
A159: T | B159: 5.5 | D159: M5.5x0.5 | E159: 0.5 | F159: 5.000 | H159: M | I159: 28 | J159: 5
A160: D | B160: 5.6 | D160: Drill | H160: M | I160: 28 | J160: 5
A161: D | B161: 5.7 | D161: Drill | H161: M | I161: 29 | J161: 5
A162: D | B162: 5.75 | D162: Drill | H162: M | I162: 29 | J162: 5
A163: D | B163: 5.8 | D163: Drill | H163: M | I163: 29 | J163: 5
A164: D | B164: 5.9 | D164: Drill | H164: M | I164: 30 | J164: 5
A165: D | B165: 6 | D165: Drill | H165: M | I165: 30 | J165: 5
A166: M | B166: 6 | D166: Mill | F166: 7.000 | H166: M | I166: 30 | J166: 5
A167: R | B167: 6 | D167: Reamer | F167: 5.600 | H167: M | I167: 30 | J167: 5
A168: CS | B168: 6 | D168: Countersink | H168: M | I168: 30 | J168: 5
A169: T | B169: 6 | D169: M6x1 | E169: 1 | F169: 5.000 | H169: M | I169: 30 | J169: 5
A170: T | B170: 6 | D170: M6x0.75 | E170: 0.75 | F170: 5.250 | H170: M | I170: 30 | J170: 5
A171: T | B171: 6 | D171: M6x0.7 | E171: 0.7 | F171: 5.300 | H171: M | I171: 30 | J171: 5
A172: T | B172: 6 | D172: M6x0.5 | E172: 0.5 | F172: 5.500 | H172: M | I172: 30 | J172: 5
A173: D | B173: 6.1 | D173: Drill | H173: M | I173: 31 | J173: 5
A174: D | B174: 6.2 | D174: Drill | H174: M | I174: 31 | J174: 5
A175: D | B175: 6.25 | D175: Drill | H175: M | I175: 32 | J175: 5
A176: D | B176: 6.3 | D176: Drill | H176: M | I176: 32 | J176: 5
A177: D | B177: 6.4 | D177: Drill | H177: M | I177: 32 | J177: 5
A178: D | B178: 6.5 | D178: Drill | H178: M | I178: 33 | J178: 5
A179: D | B179: 6.6 | D179: Drill | H179: M | I179: 33 | J179: 5
A180: D | B180: 6.7 | D180: Drill | H180: M | I180: 34 | J180: 5
A181: D | B181: 6.75 | D181: Drill | H181: M | I181: 34 | J181: 5
A182: D | B182: 6.8 | D182: Drill | H182: M | I182: 34 | J182: 5
A183: D | B183: 6.9 | D183: Drill | H183: M | I183: 35 | J183: 5
A184: D | B184: 7 | D184: Drill | H184: M | I184: 35 | J184: 5
A185: M | B185: 7 | D185: Mill | F185: 8.000 | H185: M | I185: 35 | J185: 5
A186: R | B186: 7 | D186: Reamer | F186: 6.600 | H186: M | I186: 35 | J186: 5
A187: CS | B187: 7 | D187: Countersink | H187: M | I187: 35 | J187: 5
A188: T | B188: 7 | D188: M7x1 | E188: 1 | F188: 6.000 | H188: M | I188: 35 | J188: 5
A189: T | B189: 7 | D189: M7x0.75 | E189: 0.75 | F189: 6.250 | H189: M | I189: 35 | J189: 5
A190: T | B190: 7 | D190: M7x0.5 | E190: 0.5 | F190: 6.500 | H190: M | I190: 35 | J190: 5
A191: D | B191: 7.1 | D191: Drill | H191: M | I191: 36 | J191: 5
A192: D | B192: 7.2 | D192: Drill | H192: M | I192: 36 | J192: 5
A193: D | B193: 7.25 | D193: Drill | H193: M | I193: 37 | J193: 5
A194: D | B194: 7.3 | D194: Drill | H194: M | I194: 37 | J194: 5
A195: D | B195: 7.4 | D195: Drill | H195: M | I195: 37 | J195: 5
A196: D | B196: 7.5 | D196: Drill | H196: M | I196: 38 | J196: 5
A197: D | B197: 7.6 | D197: Drill | H197: M | I197: 38 | J197: 5
A198: D | B198: 7.7 | D198: Drill | H198: M | I198: 39 | J198: 5
A199: D | B199: 7.75 | D199: Drill | H199: M | I199: 39 | J199: 5
A200: D | B200: 7.8 | D200: Drill | H200: M | I200: 39 | J200: 5
... 316 more rows

Sheet Readme - Important Editing Info
A1: Readme - Important Editing Information
A2: It has come to our attention that there are issues with saving this file to an Office 2003 (XLS) format from Office 2007 and getting it to run in Office 2010.
A4: If you are editing this file and intend to use it in a mixed environment with systems running Office 2003, 2007, and/or 2010 the file should be edited in Excel 2010 and then saved to an Office 2003 (XLS) format.
A6: Saving the file to a 2003 format from Office 2007 will cause it not to run in Office 2010. saving the file to an Office 2003 format (XLS) from Office 2010 will work on systems running Office 2007 and 2010.
A8: If you are only running in an Office 2010 environment you can save the file in an Office 2010 (XLSX) format and it will work fine.
